fUSD/lending_fUSD_20250923
["ID","MTS","AMOUNT","RATE_DAILY","PERIOD"]
[387145110,1758591042559,-404.4,0.00019995,2]
[387145111,1758591042568,-400.0,0.00019995,2]
[387145112,1758591042578,-400.0,0.00019995,2]
[387145113,1758591042587,-400.0,0.00019995,2]
[387145114,1758591042596,-400.0,0.00019995,2]
[387145115,1758591042606,-400.0,0.00019995,2]
[387145116,1758591042615,-400.0,0.00019995,2]
[387145117,1758591042625,-409.1,0.00019995,2]
[387145118,1758591042634,-400.0,0.00019995,2]
[387145119,1758591042643,-400.0,0.00019995,2]
[387145120,1758591042653,-400.0,0.00019995,2]
[387145121,1758591042662,-455.06,0.00019995,2]
[387145122,1758591042671,-400.0,0.00019995,2]
[387145123,1758591042681,-400.0,0.00019995,2]
[387145124,1758591042691,-400.0,0.00019995,2]
[387145125,1758591042700,-400.0,0.00019995,2]
[387145126,1758591042709,-400.0,0.00019995,2]
[387145127,1758591042719,-400.0,0.00019995,2]
[387145129,1758591042728,-400.0,0.00019995,2]
[387145131,1758591042737,-400.0,0.00019995,2]
[387145132,1758591042746,-400.0,0.00019995,2]
[387145133,1758591042756,-400.0,0.00019995,2]
[387145134,1758591042765,-399.33189768,0.00019995,2]
[387145135,1758591042774,-400.0,0.00019995,2]
[387145137,1758591042783,-400.0,0.00019995,2]
[387145138,1758591042795,-1863.52,0.00019995,2]
[387145139,1758591042805,-400.0,0.00019995,2]
[387145140,1758591042814,-400.0,0.00019995,2]
[387145141,1758591042824,-400.0,0.00019995,2]
[387145142,1758591042833,-400.0,0.00019995,2]
[387145143,1758591042843,-401.49156304,0.00019995,2]
[387145144,1758591042853,-757.93,0.00019995,2]
[387145145,1758591042862,-400.0,0.00019995,2]
[387145146,1758591042871,-400.0,0.00019995,2]
[387145148,1758591042880,-400.0,0.00019995,2]
[387145149,1758591042889,-400.0,0.00019995,2]
[387145150,1758591042899,-400.0,0.00019995,2]
[387145151,1758591042908,-400.0,0.00019995,2]
[387145152,1758591042920,-357.59974963,0.00019995,2]
[387145153,1758591042931,-400.0,0.00019995,2]
[387145154,1758591042940,-400.0,0.00019995,2]
[387145155,1758591042951,-400.0,0.00019995,2]
[387145156,1758591042962,-550.11,0.00019995,2]
[387145157,1758591042972,-400.0,0.00019995,2]
[387145158,1758591042981,-400.0,0.00019995,2]
[387145159,1758591042993,-526.46,0.00019995,2]
[387145160,1758591043003,-400.0,0.00019995,2]
[387145161,1758591043013,-400.0,0.00019995,2]
[387145162,1758591043022,-400.0,0.00019995,2]
[387145163,1758591043032,-400.0,0.00019995,2]
[387145164,1758591043044,-400.0,0.00019995,2]
[387145165,1758591043053,-1397.28,0.00019995,2]
[387145166,1758591043062,-400.0,0.00019995,2]
[387145167,1758591043072,-400.0,0.00019995,2]
[387145168,1758591043082,-400.0,0.00019995,2]
[387145169,1758591043092,-400.0,0.00019995,2]
[387145170,1758591043105,-407.8334013,0.00019995,2]
[387145171,1758591043114,-400.0,0.00019995,2]
[387145172,1758591043123,-400.0,0.00019995,2]
[387145173,1758591043134,-1347.76,0.00019995,2]
[387145174,1758591043143,-400.0,0.00019995,2]
[387145175,1758591043152,-400.0,0.00019995,2]
[387145176,1758591043161,-400.0,0.00019995,2]
[387145177,1758591043171,-400.0,0.00019995,2]
[387145178,1758591043180,-489.13,0.00019995,2]
[387145179,1758591043190,-637.64,0.00019995,2]
[387145180,1758591043198,-400.0,0.00019995,2]
[387145181,1758591043208,-400.0,0.00019995,2]
[387145182,1758591043218,-400.0,0.00019995,2]
[387145183,1758591043227,-400.0,0.00019995,2]
[387145184,1758591043237,-400.0,0.00019995,2]
[387145185,1758591043246,-400.0,0.00019995,2]
[387145186,1758591043256,-1068.16,0.00019995,2]
[387145187,1758591043265,-400.0,0.00019995,2]
[387145188,1758591043275,-400.0,0.00019995,2]
[387145189,1758591043284,-400.0,0.00019995,2]
[387145190,1758591043295,-486.51,0.00019995,2]
[387145191,1758591043305,-400.0,0.00019995,2]
[387145192,1758591043314,-401.78331322,0.00019995,2]
[387145193,1758591043325,-436.75,0.00019995,2]
[387145194,1758591043338,-400.0,0.00019995,2]
[387145195,1758591043348,-230.63279272,0.00019995,2]
[387145196,1758591043358,-400.0,0.00019995,2]
[387145198,1758591043368,-400.0,0.00019995,2]
[387145200,1758591043573,-400.0,0.00019995,2]
[387145201,1758591043583,-400.0,0.00019995,2]
[387145202,1758591043594,-400.0,0.00019995,2]
[387145203,1758591043603,-400.0,0.00019995,2]
[387145204,1758591043612,-868.1,0.00019995,2]
[387145205,1758591043623,-400.0,0.00019995,2]
[387145206,1758591043632,-400.0,0.00019995,2]
[387145207,1758591043642,-607.14,0.00019995,2]
[387145208,1758591043651,-1253.31,0.00019995,2]
[387145209,1758591043661,-400.0,0.00019995,2]
[387145210,1758591043670,-400.0,0.00019995,2]
[387145211,1758591043680,-400.0,0.00019995,2]
[387145212,1758591043689,-421.69754458,0.00019995,2]
[387145213,1758591043699,-400.0,0.00019995,2]
[387145214,1758591043709,-304.10108047,0.00019995,2]
[387145215,1758591043721,-400.0,0.00019995,2]
[387145216,1758591043731,-400.0,0.00019995,2]
[387145217,1758591043742,-400.0,0.00019995,2]
[387145218,1758591043752,-432.63,0.00019995,2]
[387145219,1758591043761,-400.0,0.00019995,2]
[387145220,1758591043771,-400.0,0.00019995,2]
[387145221,1758591043780,-611.29,0.00019995,2]
[387145222,1758591043791,-400.0,0.00019995,2]
[387145223,1758591043800,-1289.22,0.00019995,2]
[387145224,1758591043812,-1199.95,0.00019995,2]
[387145225,1758591043828,-400.0,0.00019995,2]
[387145226,1758591043838,-400.0,0.00019995,2]
[387145227,1758591043848,-400.0,0.00019995,2]
[387145228,1758591043860,-400.87922338,0.00019995,2]
[387145229,1758591043873,-400.0,0.00019995,2]
[387145230,1758591043884,-539.45,0.00019995,2]
[387145231,1758591043894,-408.48,0.00019995,2]
[387145232,1758591043904,-400.0,0.00019995,2]
[387145233,1758591043914,-400.0,0.00019995,2]
[387145234,1758591043923,-400.48124963,0.00019995,2]
[387145235,1758591043933,-400.0,0.00019995,2]
[387145236,1758591043943,-400.0,0.00019995,2]
[387145237,1758591043953,-400.0,0.00019995,2]
[387145238,1758591043963,-400.0,0.00019995,2]
[387145239,1758591043973,-400.0,0.00019995,2]
[387145240,1758591043983,-400.0,0.00019995,2]
[387145241,1758591043993,-400.0,0.00019995,2]
[387145242,1758591044003,-796.68,0.00019995,2]
[387145243,1758591044012,-400.0,0.00019995,2]
[387145244,1758591044022,-400.0,0.00019995,2]
[387145245,1758591044032,-400.0,0.00019995,2]
[387145246,1758591044041,-400.0,0.00019995,2]
[387145247,1758591044051,-400.0,0.00019995,2]
[387145248,1758591044061,-400.0,0.00019995,2]
[387145249,1758591044071,-400.0,0.00019995,2]
[387145250,1758591044080,-400.0,0.00019995,2]
[387145251,1758591044091,-400.0,0.00019995,2]
[387145252,1758591044101,-2817.09,0.00019995,2]
[387145253,1758591044111,-400.0,0.00019995,2]
[387145254,1758591044121,-400.0,0.00019995,2]
[387145255,1758591044132,-400.0,0.00019995,2]
[387145256,1758591044142,-400.0,0.00019995,2]
[387145257,1758591044151,-400.0,0.00019995,2]
[387145258,1758591044161,-400.0,0.00019995,2]
[387145259,1758591044171,-400.0,0.00019995,2]
[387145260,1758591044181,-400.0,0.00019995,2]
[387145261,1758591044191,-400.0,0.00019995,2]
[387145262,1758591044201,-400.0,0.00019995,2]
[387145263,1758591044211,-400.0,0.00019995,2]
[387145264,1758591044220,-400.0,0.00019995,2]
[387145265,1758591044231,-400.0,0.00019995,2]
[387145266,1758591044241,-400.0,0.00019995,2]
[387145267,1758591044250,-400.0,0.00019995,2]
[387145268,1758591044267,-671.19,0.00019995,2]
[387145269,1758591044278,-780.86,0.00019995,2]
[387145270,1758591044287,-3689.4,0.00019995,2]
[387145271,1758591044297,-406.25436516,0.00019995,2]
[387145272,1758591044307,-500.0,0.00019995,2]
[387145273,1758591044317,-400.0,0.00019995,2]
[387145274,1758591044330,-433.60877062,0.00019995,2]
[387145275,1758591044762,-584.27122938,0.00019995,2]
[387145276,1758591044772,-400.0,0.00019995,2]
[387145277,1758591044782,-400.0,0.00019995,2]
[387145278,1758591044793,-731.95,0.00019995,2]
[387145279,1758591044803,-400.0,0.00019995,2]
[387145280,1758591044814,-400.0,0.00019995,2]
[387145281,1758591044823,-400.0,0.00019995,2]
[387145282,1758591044833,-400.0,0.00019995,2]
[387145283,1758591044842,-400.0,0.00019995,2]
[387145284,1758591044852,-4235.7,0.00019995,2]
[387145285,1758591044861,-400.0,0.00019995,2]
[387145286,1758591044871,-400.0,0.00019995,2]
[387145287,1758591044881,-400.0,0.00019995,2]
[387145288,1758591044891,-400.0,0.00019995,2]
[387145289,1758591044900,-400.0,0.00019995,2]
[387145290,1758591044910,-400.0,0.00019995,2]
[387145291,1758591044920,-400.0,0.00019995,2]
[387145292,1758591044930,-400.0,0.00019995,2]
[387145293,1758591044940,-536.95,0.00019995,2]
[387145294,1758591044950,-400.0,0.00019995,2]
[387145295,1758591044960,-400.0,0.00019995,2]
[387145296,1758591044969,-400.0,0.00019995,2]
[387145297,1758591044979,-1121.52,0.00019995,2]
[387145298,1758591044989,-400.0,0.00019995,2]
[387145299,1758591044999,-1576.26,0.00019995,2]
[387145300,1758591045010,-400.0,0.00019995,2]
[387145301,1758591045020,-400.0,0.00019995,2]
[387145302,1758591045030,-400.0,0.00019995,2]
[387145303,1758591045039,-400.0,0.00019995,2]
[387145304,1758591045049,-400.0,0.00019995,2]
[387145305,1758591045059,-400.0,0.00019995,2]
[387145306,1758591045069,-364.42789872,0.00019995,2]
[387145307,1758591045080,-400.0,0.00019995,2]
[387145308,1758591045090,-400.0,0.00019995,2]
[387145309,1758591045099,-400.0,0.00019995,2]
[387145310,1758591045109,-400.0,0.00019995,2]
[387145311,1758591045119,-835.2,0.00019995,2]
[387145312,1758591045130,-484.4,0.00019995,2]
[387145313,1758591045140,-822.19,0.00019995,2]
[387145314,1758591045150,-400.0,0.00019995,2]
[387145315,1758591045160,-400.0,0.00019995,2]
[387145316,1758591045170,-400.0,0.00019995,2]
[387145317,1758591045180,-446.45,0.00019995,2]
[387145318,1758591045189,-400.0,0.00019995,2]
[387145319,1758591045199,-400.0,0.00019995,2]
[387145320,1758591045209,-400.0,0.00019995,2]
[387145321,1758591045219,-400.0,0.00019995,2]
[387145322,1758591045228,-400.0,0.00019995,2]
[387145323,1758591045238,-400.0,0.00019995,2]
[387145324,1758591045248,-400.0,0.00019995,2]
[387145325,1758591045258,-400.0,0.00019995,2]
[387145326,1758591045268,-500.0,0.00019995,2]
[387145327,1758591045277,-400.0,0.00019995,2]
[387145328,1758591045287,-400.0,0.00019995,2]
[387145329,1758591045310,-556.55,0.00019995,2]
[387145330,1758591045321,-400.0,0.00019995,2]
[387145331,1758591045334,-400.0,0.00019995,2]
[387145332,1758591045343,-400.0,0.00019995,2]
[387145333,1758591045353,-500.0,0.00019995,2]
[387145334,1758591045362,-153.12349907,0.00019995,2]
[387145335,1758591045373,-400.0,0.00019995,2]
[387145336,1758591045382,-457.46,0.00019995,2]
[387145337,1758591045391,-400.0,0.00019995,2]
[387145338,1758591045401,-400.0,0.00019995,2]
[387145339,1758591045414,-400.0,0.00019995,2]
[387145340,1758591045425,-400.0,0.00019995,2]
[387145341,1758591045435,-1175.24,0.00019995,2]
[387145342,1758591045445,-400.0,0.00019995,2]
[387145343,1758591045454,-400.0,0.00019995,2]
[387145344,1758591045467,-400.0,0.00019995,2]
[387145345,1758591045476,-400.0,0.00019995,2]
[387145346,1758591045486,-400.0,0.00019995,2]
[387145347,1758591045495,-910.02,0.00019995,2]
[387145348,1758591045505,-300.0,0.00019995,2]
[387145349,1758591045515,-400.0,0.00019995,2]
[387145350,1758591045525,-400.0,0.00019995,2]
[387145351,1758591045534,-400.0,0.00019995,2]
[387145352,1758591045544,-400.0,0.00019995,2]
[387145353,1758591045553,-1326.32,0.00019995,2]
[387145354,1758591045562,-400.0,0.00019995,2]
[387145355,1758591045571,-400.0,0.00019995,2]
[387145356,1758591045581,-400.0,0.00019995,2]
[387145357,1758591045591,-400.0,0.00019995,2]
[387145358,1758591045601,-400.0,0.00019995,2]
[387145359,1758591045611,-427.25,0.00019995,2]
[387145360,1758591045621,-2026.28,0.00019995,2]
[387145361,1758591045630,-246.26949932,0.00019995,2]
[387145362,1758591045640,-400.0,0.00019995,2]
[387145363,1758591045650,-400.0,0.00019995,2]
[387145364,1758591045660,-615.34,0.00019995,2]
[387145365,1758591045669,-441.94,0.00019995,2]
[387145366,1758591045680,-400.0,0.00019995,2]
[387145367,1758591045689,-552.43,0.00019995,2]
[387145368,1758591045701,-400.0,0.00019995,2]
[387145369,1758591045711,-400.0,0.00019995,2]
[387145370,1758591045723,-400.0,0.00019995,2]
[387145371,1758591045733,-400.0,0.00019995,2]
[387145372,1758591045742,-1431.68,0.00019995,2]
[387145373,1758591045751,-400.0,0.00019995,2]
[387145374,1758591045761,-400.0,0.00019995,2]
[387145375,1758591045771,-400.0,0.00019995,2]
[387145376,1758591045780,-3149.8,0.00019995,2]
[387145377,1758591045789,-400.0,0.00019995,2]
[387145378,1758591045799,-400.0,0.00019995,2]
[387145379,1758591045809,-1000.0,0.00019995,2]
[387145380,1758591045819,-400.0,0.00019995,2]
[387145381,1758591045828,-400.0,0.00019995,2]
[387145382,1758591045838,-400.0,0.00019995,2]
[387145383,1758591045848,-1809.74,0.00019995,2]
[387145384,1758591045858,-529.6,0.00019995,2]
[387145385,1758591045938,-400.0,0.00019995,2]
[387145386,1758591045948,-402.25738741,0.00019995,2]
[387145387,1758591045957,-1263.63,0.00019995,2]
[387145388,1758591045967,-402.92567166,0.00019995,2]
[387145389,1758591045976,-402.10801566,0.00019995,2]
[387145390,1758591045985,-461.06,0.00019995,2]
[387145391,1758591045994,-552.32,0.00019995,2]
[387145392,1758591046004,-404.87809486,0.00019995,2]
[387145393,1758591046014,-400.77983244,0.00019995,2]
[387145394,1758591046024,-420.06,0.00019995,2]
[387145395,1758591046034,-400.0,0.00019995,2]
[387145396,1758591046047,-472.92004967,0.00019995,2]
[387145397,1758591046057,-400.55973463,0.00019995,2]
[387145398,1758591046066,-497.2,0.00019995,2]
[387145399,1758591046075,-401.10288089,0.00019995,2]
[387145400,1758591046085,-423.71,0.00019995,2]
[387145401,1758591046094,-400.0,0.00019995,2]
[387145402,1758591046103,-1197.83,0.00019995,2]
[387145403,1758591046112,-400.0,0.00019995,2]
[387145404,1758591046122,-402.48487258,0.00019995,2]
[387145405,1758591046131,-973.31,0.00019995,2]
[387145406,1758591046140,-401.32232172,0.00019995,2]
[387145407,1758591046149,-401.02476374,0.00019995,2]
[387145408,1758591046158,-400.0,0.00019995,2]
[387145409,1758591046171,-400.0,0.00019996,2]
[387145410,1758591046180,-400.0,0.00019996,2]
[387145411,1758591046189,-397.81439846,0.00019996,2]
[387145412,1758591046199,-400.0,0.00019996,2]
[387145413,1758591046208,-400.0,0.00019996,2]
[387145414,1758591046217,-400.0,0.00019996,2]
[387145415,1758591046226,-400.0,0.00019996,2]
[387145416,1758591046235,-400.0,0.00019996,2]
[387145417,1758591046244,-413.48845721,0.00019996,2]
[387145418,1758591046253,-417.44307026,0.00019996,2]
[387145419,1758591046263,-400.0,0.00019996,2]
[387145420,1758591046272,-400.0,0.00019996,2]
[387145421,1758591046281,-189.83037462,0.00019996,2]
[387145422,1758591046292,-400.0,0.00019996,2]
[387145423,1758591046301,-400.0,0.00019996,2]
[387145424,1758591046310,-400.0,0.00019996,2]
[387145425,1758591046319,-400.0,0.00019996,2]
[387145426,1758591046332,-400.0,0.00019996,2]
[387145427,1758591046343,-400.0,0.00019996,2]
[387145428,1758591046353,-400.0,0.00019996,2]
[387145429,1758591046364,-400.0,0.00019996,2]
[387145430,1758591046373,-400.0,0.00019996,2]
[387145431,1758591046382,-400.0,0.00019996,2]
[387145432,1758591046392,-400.0,0.00019996,2]
[387145433,1758591046400,-400.0,0.00019996,2]
[387145434,1758591046409,-400.0,0.00019996,2]
[387145436,1758591046418,-400.0,0.00019996,2]
[387145438,1758591046428,-400.0,0.00019996,2]
[387145439,1758591046437,-400.0,0.00019996,2]
[387145440,1758591046448,-400.0,0.00019996,2]
[387145441,1758591046458,-400.0,0.00019996,2]
[387145442,1758591046467,-400.0,0.00019996,2]
[387145443,1758591046477,-400.0,0.00019996,2]
[387145444,1758591046486,-400.0,0.00019996,2]
[387145445,1758591046495,-500.0,0.00019996,2]
[387145446,1758591046504,-500.0,0.00019999,2]
[387145447,1758591046513,-500.0,0.00019999,2]
[387145448,1758591046522,-500.0,0.00019999,2]
[387145449,1758591046531,-500.0,0.00019999,2]
[387145450,1758591046540,-500.0,0.00019999,2]
[387145451,1758591046550,-500.0,0.00019999,2]
[387145452,1758591046559,-500.0,0.00019999,2]
[387145453,1758591046567,-500.0,0.00019999,2]
[387145454,1758591046577,-1000.0,0.0002,2]
[387145455,1758591046586,-1000.0,0.0002,2]
[387145456,1758591046596,-1000.0,0.0002,2]
[387145457,1758591046606,-336473.97720067,0.0002,2]
[387145458,1758591046620,-3891.07764794,0.0002,2]
[387145459,1758591046948,-400.0,0.00019994,2]
[387145460,1758591046957,-239.1636254,0.00019995,2]
[387145461,1758591046967,-2228.22867139,0.0002,2]
[387145462,1758591046982,-2858.2665124,0.0002,2]
[387145463,1758591046994,-2253.0024428,0.0002,2]
[387145464,1758591047522,-404.4693178,0.00019994,2]
[387145465,1758591047533,-500.0,0.00019994,2]
[387145466,1758591047542,-470.80735354,0.00019994,2]
[387145467,1758591047552,-400.0,0.00019994,2]
[387145468,1758591047564,-404.6925613,0.00019994,2]
[387145469,1758591047574,-430.156654,0.00019995,2]
[387145470,1758591047584,-452.10931006,0.00019995,2]
[387145471,1758591047595,-410.30869874,0.00019999,2]
[387145472,1758591047604,-698.45610456,0.0002,2]
[387145473,1758591048310,-400.0,0.00019994,2]
[387145474,1758591048320,-158.95393669,0.00019994,2]
[387145475,1758591048336,-417.980271,0.00019995,2]
[387145476,1758591048347,-125.36579231,0.00019995,2]
[387145477,1758591048361,-274.63420769,0.00019995,2]
[387145478,1758591048371,-1376.42029211,0.0002,2]
[387145479,1758591048404,-4588.2550615,0.0002,2]
[387145480,1758591048415,-275.49118892,0.0002,2]
[387145481,1758591048427,-1322.76162382,0.0002,2]
[387145482,1758591048439,-4886.93740511,0.0002,2]
[387145483,1758591048451,-5781.2497389,0.0002,2]
[387145484,1758591048462,-787.05381523,0.0002,2]
[387145485,1758591052117,5013.72417856,0.00018292,2]
[387145486,1758591121811,1000.0,0.0003,120]
[387145492,1758591304540,273.4,0.000291,120]
[387145493,1758591327807,414.8,0.00030137,120]
[387145495,1758591357255,171.91,9.596e-05,2]
[387145496,1758591701301,150.0,0.0001906,7]
[387145497,1758591927060,150.0,0.000183,2]
[387145498,1758592104901,9975.0,0.00030137,120]
[387145502,1758592232050,-1200.0,0.00018763,2]
[387145503,1758592232061,-153.38208906,0.00018764,2]
[387145504,1758592232070,-154.8558059,0.00018764,2]
[387145505,1758592232080,-151.92781613,0.00018764,2]
[387145506,1758592232089,-154.79599006,0.00018764,2]
[387145507,1758592232099,-152.02165323,0.00018764,2]
[387145508,1758592232109,-153.12290033,0.00018764,2]
[387145509,1758592232118,-155.1092794,0.00018764,2]
[387145510,1758592232127,-153.30096597,0.00018764,2]
[387145511,1758592232137,-300.0,0.00019187,2]
[387145512,1758592232148,-300.0,0.00019189,2]
[387145513,1758592232157,-1200.0,0.0001919,2]
[387145514,1758592232167,-171.91,0.00019191,2]
[387145515,1758592232176,-725.60602438,0.00019191,3]
[387145516,1758592232197,-769.93563703,0.00019191,3]
[387145517,1758592232207,-666.0,0.00019191,3]
[387145518,1758592232217,-164.49,0.00019329,2]
[387145519,1758592232227,-150.0,0.0001948,2]
[387145520,1758592232237,-1000.0,0.000198,2]
[387145521,1758592232247,-1000.0,0.000198,3]
[387145522,1758592232256,-164.26365948,0.000198,2]
[387145523,1758592232268,-308.52634052,0.000198,2]
[387145524,1758592232277,-805.56,0.000198,2]
[387145525,1758592232286,-175.17193,0.000198,2]
[387145526,1758592232295,-798.25342913,0.0001981,2]
[387145527,1758592232305,-851.5687456,0.00019881,2]
[387145528,1758592232314,-208.75512609,0.00019894,2]
[387145529,1758592232323,-186.04834039,0.00019894,2]
[387145530,1758592232333,-3583.88359884,0.00019894,2]
[387145531,1758592232342,-312.2004,0.00019895,2]
[387145532,1758592232351,-579.96758277,0.000199,2]
[387145533,1758592232360,-1362.59727362,0.00019967,2]
[387145534,1758592232370,-500.0,0.00019973,2]
[387145535,1758592232379,-516.9742911,0.00019973,2]
[387145536,1758592232390,-500.0,0.00019973,2]
[387145537,1758592232399,-21.73168471,0.00019983,2]
[387145538,1758592232411,-1411.84831529,0.00019983,2]
[387145539,1758592232420,-452.97878381,0.0001999,2]
[387145540,1758592232430,-521.706,0.00019992,2]
[387145541,1758592232440,-178.44211258,0.00019992,2]
[387145542,1758592232450,-201.30399262,0.00019992,2]
[387145543,1758592232459,-527.03176231,0.00019992,2]
[387145544,1758592232469,-500.0,0.00019992,2]
[387145545,1758592232479,-500.0,0.00019992,2]
[387145546,1758592232488,-340.7546398,0.00019992,2]
[387145547,1758592232498,-153.04689872,0.00019992,2]
[387145548,1758592232510,-246.95310128,0.00019992,2]
[387145549,1758592232520,-400.0,0.00019992,2]
[387145550,1758592232529,-401.78883454,0.00019992,2]
[387145552,1758592232539,-400.0,0.00019992,2]
[387145554,1758592232549,-401.06051305,0.00019992,2]
[387145556,1758592232559,-407.98561616,0.00019992,2]
[387145558,1758592232568,-400.0,0.00019992,2]
[387145560,1758592232577,-400.0,0.00019992,2]
[387145562,1758592232587,-400.0,0.00019992,2]
[387145564,1758592232597,-426.39081383,0.00019992,2]
[387145566,1758592232606,-400.0,0.00019992,2]
[387145567,1758592232615,-400.0,0.00019992,2]
[387145568,1758592232625,-402.04032363,0.00019992,2]
[387145569,1758592232635,-400.0,0.00019992,2]
[387145570,1758592232644,-400.0,0.00019992,2]
[387145571,1758592232654,-400.0,0.00019992,2]
[387145572,1758592232664,-400.0,0.00019992,2]
[387145573,1758592232673,-430.89408931,0.00019992,2]
[387145574,1758592232683,-400.85553855,0.00019992,2]
[387145575,1758592232692,-500.0,0.00019992,2]
[387145576,1758592232701,-400.0,0.00019992,2]
[387145577,1758592232710,-400.0,0.00019992,2]
[387145578,1758592232720,-587.47,0.00019992,2]
[387145579,1758592232729,-400.0,0.00019992,2]
[387145580,1758592232738,-400.0,0.00019992,2]
[387145581,1758592232748,-406.84288726,0.00019992,2]
[387145582,1758592232757,-401.60762073,0.00019992,2]
[387145583,1758592232767,-307.44140812,0.00019992,2]
[387145584,1758592232781,-92.55859188,0.00019992,2]
[387145585,1758592232791,-403.06257648,0.00019992,2]
[387145586,1758592232800,-400.0,0.00019993,2]
[387145587,1758592232810,-400.0,0.00019993,2]
[387145588,1758592232820,-400.0,0.00019993,2]
[387145589,1758592232830,-400.0,0.00019993,2]
[387145590,1758592232839,-444.2340428,0.00019993,2]
[387145591,1758592232850,-400.0,0.00019993,2]
[387145592,1758592232859,-400.0,0.00019993,2]
[387145593,1758592232869,-400.0,0.00019993,2]
[387145594,1758592232879,-402.72648603,0.00019993,2]
[387145595,1758592232888,-400.0,0.00019993,2]
[387145596,1758592232898,-400.0,0.00019993,2]
[387145597,1758592232907,-400.0,0.00019993,2]
[387145598,1758592232916,-400.0,0.00019993,2]
[387145599,1758592232926,-400.0,0.00019993,2]
[387145600,1758592232936,-400.0,0.00019993,2]
[387145601,1758592232945,-174.72879768,0.00019993,2]
[387145602,1758592232954,-400.0,0.00019993,2]
[387145603,1758592232963,-400.0,0.00019993,2]
[387145604,1758592232972,-400.0,0.00019993,2]
[387145605,1758592232982,-400.0,0.00019993,2]
[387145606,1758592232991,-402.25319991,0.00019993,2]
[387145607,1758592233001,-400.0,0.00019993,2]
[387145608,1758592233011,-400.0,0.00019993,2]
[387145609,1758592233020,-400.0,0.00019993,2]
[387145610,1758592233031,-400.0,0.00019993,2]
[387145611,1758592233040,-400.0,0.00019993,2]
[387145612,1758592233050,-436.40583589,0.00019993,2]
[387145613,1758592233059,-400.0,0.00019993,2]
[387145614,1758592233070,-400.0,0.00019993,2]
[387145615,1758592233080,-400.0,0.00019993,2]
[387145616,1758592233090,-400.0,0.00019993,2]
[387145617,1758592233099,-400.0,0.00019993,2]
[387145618,1758592233110,-402.31381994,0.00019993,2]
[387145619,1758592233126,-400.0,0.00019993,2]
[387145620,1758592233136,-400.91706448,0.00019993,2]
[387145621,1758592233146,-400.0,0.00019993,2]
[387145622,1758592233156,-400.0,0.00019993,2]
[387145623,1758592233165,-400.0,0.00019993,2]
[387145624,1758592233175,-400.0,0.00019993,2]
[387145625,1758592233185,-400.0,0.00019993,2]
[387145626,1758592233195,-401.29301617,0.00019993,2]
[387145627,1758592233205,-278.27408645,0.00019993,2]
[387145628,1758592233215,-400.0,0.00019993,2]
[387145629,1758592233225,-400.0,0.00019993,2]
[387145630,1758592233234,-400.0,0.00019993,2]
[387145631,1758592233245,-400.0,0.00019993,2]
[387145632,1758592233254,-400.0,0.00019993,2]
[387145633,1758592233264,-400.0,0.00019993,2]
[387145634,1758592233273,-498.64,0.00019993,2]